[Event "Titled Tuesday Blitz July 25 Early 2023"]
[White "Gholami Orimi, Mahdi"]
[Black "Tologon tegin, Semetei"]
[WhiteFideId "12558486"]
[BlackFideId "13800574"]
[WhiteElo "2899"]
[BlackElo "2592"]
[Result "1-0"]
[Round "4"]
[TimeControl "180+2"]
[Date "2023.07.25"]
[WhiteClock "0:00:06"]
[BlackClock "0:00:03"]
[Board "44"]

1. Nf3 {[%clk 0:03:00]}  b6 {[%clk 0:02:54]} 2. b3 {[%clk 0:02:59]}  Bb7 {[%clk 0:02:55]} 3. Bb2 {[%clk 0:03:00]}  f5 {[%clk 0:02:55]} 4. c4 {[%clk 0:02:57]}  e6 {[%clk 0:02:55]} 5. Nc3 {[%clk 0:02:56]}  Nf6 {[%clk 0:02:55]} 6. e3 {[%clk 0:02:56]}  Bb4 {[%clk 0:02:49]} 7. Be2 {[%clk 0:02:56]}  O-O {[%clk 0:02:48]} 8. Qc2 {[%clk 0:02:53]}  Bxc3 {[%clk 0:02:40]} 9. Bxc3 {[%clk 0:02:53]}  d6 {[%clk 0:02:39]} 10. h3 {[%clk 0:02:52]}  Nbd7 {[%clk 0:02:39]} 11. Rg1 {[%clk 0:02:51]}  Qe7 {[%clk 0:02:33]} 12. d3 {[%clk 0:02:41]}  a5 {[%clk 0:02:30]} 13. g4 {[%clk 0:02:40]}  a4 {[%clk 0:02:25]} 14. gxf5 {[%clk 0:02:35]}  exf5 {[%clk 0:02:24]} 15. Nd4 {[%clk 0:02:35]}  g6 {[%clk 0:02:22]} 16. Nxf5 {[%clk 0:02:33]}  Qe6 {[%clk 0:02:21]} 17. Nh6+ {[%clk 0:02:33]}  Kh8 {[%clk 0:02:21]} 18. Ng4 {[%clk 0:02:29]}  Kg8 {[%clk 0:02:14]} 19. b4 {[%clk 0:02:22]}  Nxg4 {[%clk 0:01:58]} 20. Bxg4 {[%clk 0:02:23]}  Qe7 {[%clk 0:01:58]} 21. O-O-O {[%clk 0:01:32]}  Bf3 {[%clk 0:01:55]} 22. Rde1 {[%clk 0:01:25]}  Ne5 {[%clk 0:01:43]} 23. Rg3 {[%clk 0:01:20]}  Bxg4 {[%clk 0:01:32]} 24. hxg4 {[%clk 0:01:21]}  Rxf2 {[%clk 0:01:32]} 25. Re2 {[%clk 0:01:16]}  Raf8 {[%clk 0:01:16]} 26. Rg2 {[%clk 0:01:07]}  Rxg2 {[%clk 0:01:05]} 27. Rxg2 {[%clk 0:01:06]}  a3 {[%clk 0:01:05]} 28. Qe2 {[%clk 0:01:01]}  c5 {[%clk 0:00:49]} 29. d4 {[%clk 0:00:27]}  Nc6 {[%clk 0:00:45]} 30. b5 {[%clk 0:00:25]}  Nb4 {[%clk 0:00:38]} 31. Bxb4 {[%clk 0:00:24]}  cxb4 {[%clk 0:00:39]} 32. Qd3 {[%clk 0:00:24]}  Rf3 {[%clk 0:00:36]} 33. Re2 {[%clk 0:00:23]}  Qe6 {[%clk 0:00:28]} 34. Kc2 {[%clk 0:00:22]}  Qxg4 {[%clk 0:00:23]} 35. Kb3 {[%clk 0:00:22]}  Qg1 {[%clk 0:00:16]} 36. Kxb4 {[%clk 0:00:17]}  Qf1 {[%clk 0:00:16]} 37. Qc2 {[%clk 0:00:14]}  Qg1 {[%clk 0:00:10]} 38. Qb3 {[%clk 0:00:14]}  Qf1 {[%clk 0:00:09]} 39. Rc2 {[%clk 0:00:07]}  Qe1+ {[%clk 0:00:08]} 40. Qc3 {[%clk 0:00:05]}  Qb1+ {[%clk 0:00:08]} 41. Kxa3 {[%clk 0:00:05]}  Rxe3 {[%clk 0:00:07]} 42. Qxe3 {[%clk 0:00:05]}  Qxc2 {[%clk 0:00:08]} 43. Qe6+ {[%clk 0:00:03]}  Kg7 {[%clk 0:00:08]} 44. Qe7+ {[%clk 0:00:03]}  Kh6 {[%clk 0:00:08]} 45. Qh4+ {[%clk 0:00:03]}  Kg7 {[%clk 0:00:09]} 46. Qe7+ {[%clk 0:00:04]}  Kg8 {[%clk 0:00:09]} 47. Qd8+ {[%clk 0:00:04]}  Kg7 {[%clk 0:00:09]} 48. Qxb6 {[%clk 0:00:03]}  Qxc4 {[%clk 0:00:08]} 49. Qb7+ {[%clk 0:00:02]}  Kh6 {[%clk 0:00:08]} 50. Qh1+ {[%clk 0:00:02]}  Kg5 {[%clk 0:00:08]} 51. Qg2+ {[%clk 0:00:03]}  Kf5 {[%clk 0:00:08]} 52. Qb2 {[%clk 0:00:04]}  Qd3+ {[%clk 0:00:07]} 53. Ka4 {[%clk 0:00:04]}  Qc4+ {[%clk 0:00:07]} 54. Ka5 {[%clk 0:00:05]}  h5 {[%clk 0:00:06]} 55. b6 {[%clk 0:00:05]}  Qc8 {[%clk 0:00:05]} 56. b7 {[%clk 0:00:05]}  Qb8 {[%clk 0:00:05]} 57. Ka6 {[%clk 0:00:04]}  h4 {[%clk 0:00:05]} 58. Qc2+ {[%clk 0:00:05]}  Kg4 {[%clk 0:00:05]} 59. Qc8+ {[%clk 0:00:06]}  Kg3 {[%clk 0:00:03]} 60. Qxb8 {[%clk 0:00:06]} 1-0


[Site "https://www.chess.com"]

[Event "Titled Tuesday Blitz July 25 Early 2023"]
[White "Al-Tarboush, Ward"]
[Black "Moroni, Luca Jr"]
[WhiteFideId "7601450"]
[BlackFideId "865834"]
[WhiteElo "2581"]
[BlackElo "2857"]
[Result "0-1"]
[Round "4"]
[TimeControl "180+2"]
[Date "2023.07.25"]
[WhiteClock "0:01:06"]
[BlackClock "0:01:08"]
[Board "46"]

1. e4 {[%clk 0:03:00]}  g6 {[%clk 0:02:56]} 2. d4 {[%clk 0:03:00]}  Bg7 {[%clk 0:02:55]} 3. Nc3 {[%clk 0:03:00]}  a6 {[%clk 0:02:56]} 4. a4 {[%clk 0:02:57]}  d6 {[%clk 0:02:55]} 5. f4 {[%clk 0:02:56]}  d5 {[%clk 0:02:53]} 6. exd5 {[%clk 0:02:51]}  Nf6 {[%clk 0:02:53]} 7. Qf3 {[%clk 0:02:44]}  Bg4 {[%clk 0:02:49]} 8. Qg3 {[%clk 0:02:42]}  Bf5 {[%clk 0:02:49]} 9. Nf3 {[%clk 0:02:39]}  Nxd5 {[%clk 0:02:35]} 10. Bc4 {[%clk 0:02:36]}  e6 {[%clk 0:02:25]} 11. O-O {[%clk 0:02:34]}  Nc6 {[%clk 0:02:20]} 12. Nxd5 {[%clk 0:02:32]}  exd5 {[%clk 0:02:21]} 13. Re1+ {[%clk 0:02:33]}  Kf8 {[%clk 0:02:06]} 14. Bd3 {[%clk 0:02:25]}  Bxd3 {[%clk 0:02:01]} 15. cxd3 {[%clk 0:02:26]}  Nxd4 {[%clk 0:02:01]} 16. f5 {[%clk 0:01:59]}  Nxf5 {[%clk 0:01:57]} 17. Qg4 {[%clk 0:01:59]}  b6 {[%clk 0:01:34]} 18. Bg5 {[%clk 0:01:59]}  Bf6 {[%clk 0:01:30]} 19. Rac1 {[%clk 0:01:56]}  Kg7 {[%clk 0:01:20]} 20. Bf4 {[%clk 0:01:16]}  c5 {[%clk 0:01:15]} 21. b4 {[%clk 0:01:09]}  Re8 {[%clk 0:01:08]} 22. Rxe8 {[%clk 0:01:05]}  Qxe8 {[%clk 0:01:08]} 23. bxc5 {[%clk 0:01:05]}  bxc5 {[%clk 0:01:09]} 24. Rxc5 {[%clk 0:01:06]}  Bd4+ {[%clk 0:01:08]} 0-1


[Site "https://www.chess.com"]

[Event "Titled Tuesday Blitz July 25 Early 2023"]
[White "Sychev, Klementy"]
[Black "Fernandez, Fernando"]
[WhiteFideId "4114060"]
[BlackFideId "3802299"]
[WhiteElo "2835"]
[BlackElo "2576"]
[Result "1-0"]
[Round "4"]
[TimeControl "180+2"]
[Date "2023.07.25"]
[WhiteClock "0:01:45"]
[BlackClock "0:01:25"]
[Board "47"]

1. e4 {[%clk 0:03:00]}  c6 {[%clk 0:02:57]} 2. d4 {[%clk 0:03:00]}  d5 {[%clk 0:02:58]} 3. e5 {[%clk 0:03:00]}  c5 {[%clk 0:02:57]} 4. dxc5 {[%clk 0:02:59]}  e6 {[%clk 0:02:57]} 5. Qg4 {[%clk 0:02:59]}  Nd7 {[%clk 0:02:49]} 6. Bb5 {[%clk 0:02:56]}  Ne7 {[%clk 0:02:27]} 7. Nf3 {[%clk 0:02:42]}  Nc6 {[%clk 0:02:27]} 8. b4 {[%clk 0:02:23]}  Qc7 {[%clk 0:01:56]} 9. Bb2 {[%clk 0:02:16]}  a5 {[%clk 0:01:53]} 10. a3 {[%clk 0:02:16]}  b6 {[%clk 0:01:51]} 11. Bxc6 {[%clk 0:02:02]}  Qxc6 {[%clk 0:01:48]} 12. Nd4 {[%clk 0:02:02]}  Qc7 {[%clk 0:01:27]} 13. Nb5 {[%clk 0:02:01]}  Qb8 {[%clk 0:01:25]} 14. Nd6+ {[%clk 0:01:45]} 1-0


[Site "https://www.chess.com"]

[Event "Titled Tuesday Blitz July 25 Early 2023"]
[White "Donchenko, Alexander"]
[Black "Vovk, Orest"]
[WhiteFideId "24603295"]
[BlackFideId "14113490"]
[WhiteElo "2833"]
[BlackElo "2573"]
[Result "1-0"]
[Round "4"]
[TimeControl "180+2"]
[Date "2023.07.25"]
[WhiteClock "0:00:21"]
[BlackClock "0:00:03"]
[Board "48"]

1. d4 {[%clk 0:02:58]}  h6 {[%clk 0:02:58]} 2. e4 {[%clk 0:02:58]}  g5 {[%clk 0:02:59]} 3. h4 {[%clk 0:02:58]}  g4 {[%clk 0:02:59]} 4. Qxg4 {[%clk 0:02:57]}  d5 {[%clk 0:02:59]} 5. Qf3 {[%clk 0:02:44]}  dxe4 {[%clk 0:02:59]} 6. Qxe4 {[%clk 0:02:45]}  Nf6 {[%clk 0:03:00]} 7. Qd3 {[%clk 0:02:45]}  Nc6 {[%clk 0:03:00]} 8. Nf3 {[%clk 0:02:43]}  Bg4 {[%clk 0:03:00]} 9. Nbd2 {[%clk 0:02:41]}  Qd5 {[%clk 0:02:58]} 10. Qb3 {[%clk 0:02:32]}  O-O-O {[%clk 0:02:55]} 11. Qxd5 {[%clk 0:02:31]}  Nxd5 {[%clk 0:02:56]} 12. c3 {[%clk 0:02:29]}  e5 {[%clk 0:02:50]} 13. dxe5 {[%clk 0:02:22]}  Bg7 {[%clk 0:02:39]} 14. Bc4 {[%clk 0:02:13]}  Nxe5 {[%clk 0:02:21]} 15. Nxe5 {[%clk 0:02:12]}  Bxe5 {[%clk 0:02:21]} 16. O-O {[%clk 0:02:07]}  Nf4 {[%clk 0:02:16]} 17. Re1 {[%clk 0:02:02]}  Bg7 {[%clk 0:01:59]} 18. Re4 {[%clk 0:01:55]}  Rhe8 {[%clk 0:01:50]} 19. Rxf4 {[%clk 0:01:54]}  Re1+ {[%clk 0:01:50]} 20. Nf1 {[%clk 0:01:49]}  f5 {[%clk 0:01:36]} 21. f3 {[%clk 0:00:49]}  Be5 {[%clk 0:01:26]} 22. fxg4 {[%clk 0:00:49]}  Bxf4 {[%clk 0:01:22]} 23. Bxf4 {[%clk 0:00:50]}  Rxa1 {[%clk 0:01:22]} 24. gxf5 {[%clk 0:00:50]}  h5 {[%clk 0:01:04]} 25. f6 {[%clk 0:00:50]}  b5 {[%clk 0:00:28]} 26. Be6+ {[%clk 0:00:46]}  Kb7 {[%clk 0:00:28]} 27. f7 {[%clk 0:00:46]}  Re1 {[%clk 0:00:22]} 28. Bb3 {[%clk 0:00:43]}  c5 {[%clk 0:00:16]} 29. Bd5+ {[%clk 0:00:40]}  Kb6 {[%clk 0:00:16]} 30. Bh6 {[%clk 0:00:37]}  Re2 {[%clk 0:00:11]} 31. b4 {[%clk 0:00:34]}  c4 {[%clk 0:00:09]} 32. f8=Q {[%clk 0:00:31]}  Rxf8 {[%clk 0:00:09]} 33. Bxf8 {[%clk 0:00:32]}  Rxa2 {[%clk 0:00:09]} 34. Ng3 {[%clk 0:00:26]}  Rc2 {[%clk 0:00:08]} 35. Bg7 {[%clk 0:00:25]}  a5 {[%clk 0:00:06]} 36. bxa5+ {[%clk 0:00:25]}  Kxa5 {[%clk 0:00:07]} 37. Nxh5 {[%clk 0:00:23]}  b4 {[%clk 0:00:08]} 38. cxb4+ {[%clk 0:00:23]}  Kxb4 {[%clk 0:00:08]} 39. Nf4 {[%clk 0:00:21]}  Rc1+ {[%clk 0:00:04]} 40. Kh2 {[%clk 0:00:22]}  Rd1 {[%clk 0:00:05]} 41. Bxc4 {[%clk 0:00:21]}  Kxc4 {[%clk 0:00:03]} 42. h5 {[%clk 0:00:21]} 1-0


[Site "https://www.chess.com"]

[Event "Titled Tuesday Blitz July 25 Early 2023"]
[White "Ibadov, Dashgyn"]
[Black "Vitiugov, Nikita"]
[WhiteFideId "24107514"]
[BlackFideId "4152956"]
[WhiteElo "2570"]
[BlackElo "2826"]
[Result "0-1"]
[Round "4"]
[TimeControl "180+2"]
[Date "2023.07.25"]
[WhiteClock "0:00:01"]
[BlackClock "0:00:12"]
[Board "49"]

1. e4 {[%clk 0:03:00]}  c5 {[%clk 0:02:59]} 2. Nf3 {[%clk 0:03:01]}  e6 {[%clk 0:02:59]} 3. g3 {[%clk 0:03:00]}  Nc6 {[%clk 0:02:54]} 4. Bg2 {[%clk 0:03:01]}  Nf6 {[%clk 0:02:54]} 5. Nc3 {[%clk 0:02:59]}  e5 {[%clk 0:02:49]} 6. O-O {[%clk 0:02:52]}  d6 {[%clk 0:02:48]} 7. d3 {[%clk 0:02:52]}  h6 {[%clk 0:02:46]} 8. Nh4 {[%clk 0:02:50]}  Nd4 {[%clk 0:02:34]} 9. f4 {[%clk 0:02:39]}  Bg4 {[%clk 0:02:21]} 10. Qd2 {[%clk 0:02:35]}  Be7 {[%clk 0:02:21]} 11. Nf5 {[%clk 0:02:28]}  Bxf5 {[%clk 0:02:01]} 12. exf5 {[%clk 0:02:22]}  exf4 {[%clk 0:01:54]} 13. Rxf4 {[%clk 0:02:18]}  Qd7 {[%clk 0:01:52]} 14. Ne4 {[%clk 0:02:01]}  O-O {[%clk 0:01:42]} 15. c3 {[%clk 0:01:55]}  Nc6 {[%clk 0:01:39]} 16. Qf2 {[%clk 0:01:28]}  Ne5 {[%clk 0:01:35]} 17. Qf1 {[%clk 0:01:18]}  Rfe8 {[%clk 0:01:20]} 18. Bd2 {[%clk 0:01:17]}  d5 {[%clk 0:01:16]} 19. Nxf6+ {[%clk 0:01:13]}  Bxf6 {[%clk 0:01:17]} 20. h4 {[%clk 0:01:07]}  Re7 {[%clk 0:01:12]} 21. Re1 {[%clk 0:01:06]}  Rae8 {[%clk 0:01:11]} 22. Kh2 {[%clk 0:01:02]}  h5 {[%clk 0:01:08]} 23. Kh1 {[%clk 0:00:52]}  Qd6 {[%clk 0:01:05]} 24. d4 {[%clk 0:00:35]}  cxd4 {[%clk 0:00:50]} 25. Rxd4 {[%clk 0:00:35]}  Ng4 {[%clk 0:00:50]} 26. Rxe7 {[%clk 0:00:26]}  Rxe7 {[%clk 0:00:43]} 27. Bf4 {[%clk 0:00:25]}  Qb6 {[%clk 0:00:38]} 28. Rxd5 {[%clk 0:00:17]}  Qxb2 {[%clk 0:00:36]} 29. Rd2 {[%clk 0:00:10]}  Qxc3 {[%clk 0:00:33]} 30. Qd1 {[%clk 0:00:04]}  Re8 {[%clk 0:00:20]} 31. Bf3 {[%clk 0:00:04]}  Be5 {[%clk 0:00:15]} 32. Bxg4 {[%clk 0:00:02]}  Bxf4 {[%clk 0:00:15]} 33. gxf4 {[%clk 0:00:01]}  hxg4 {[%clk 0:00:14]} 34. Rd8 {[%clk 0:00:01]}  Qh3+ {[%clk 0:00:12]} 0-1


[Site "https://www.chess.com"]

[Event "Titled Tuesday Blitz July 25 Early 2023"]
[White "Gharibyan, Mamikon"]
[Black "Roebers, Eline"]
[WhiteFideId "13308300"]
[BlackFideId "1058401"]
[WhiteElo "2807"]
[BlackElo "2568"]
[Result "0-1"]
[Round "4"]
[TimeControl "180+2"]
[Date "2023.07.25"]
[WhiteClock "0:00:02"]
[BlackClock "0:00:06"]
[Board "52"]

1. b3 {[%clk 0:03:00]}  a5 {[%clk 0:02:59]} 2. Nc3 {[%clk 0:02:59]}  b6 {[%clk 0:02:57]} 3. Bb2 {[%clk 0:02:57]}  Bb7 {[%clk 0:02:57]} 4. Nf3 {[%clk 0:02:56]}  f5 {[%clk 0:02:56]} 5. g3 {[%clk 0:02:54]}  Nf6 {[%clk 0:02:56]} 6. Bg2 {[%clk 0:02:54]}  g6 {[%clk 0:02:53]} 7. d3 {[%clk 0:02:52]}  Bg7 {[%clk 0:02:51]} 8. Qd2 {[%clk 0:02:52]}  O-O {[%clk 0:02:51]} 9. a4 {[%clk 0:02:52]}  d6 {[%clk 0:02:50]} 10. O-O-O {[%clk 0:02:50]}  e5 {[%clk 0:02:49]} 11. Rhg1 {[%clk 0:02:45]}  Nbd7 {[%clk 0:02:38]} 12. Ng5 {[%clk 0:02:37]}  Qc8 {[%clk 0:02:27]} 13. Ne6 {[%clk 0:02:34]}  Rf7 {[%clk 0:02:21]} 14. Nxg7 {[%clk 0:02:32]}  Kxg7 {[%clk 0:02:22]} 15. Bxb7 {[%clk 0:02:28]}  Qxb7 {[%clk 0:02:22]} 16. f4 {[%clk 0:02:29]}  Re8 {[%clk 0:02:17]} 17. h3 {[%clk 0:02:27]}  Nc5 {[%clk 0:02:10]} 18. g4 {[%clk 0:02:20]}  fxg4 {[%clk 0:02:09]} 19. fxe5 {[%clk 0:02:14]}  dxe5 {[%clk 0:01:59]} 20. hxg4 {[%clk 0:02:14]}  Nd5 {[%clk 0:01:56]} 21. Rh1 {[%clk 0:01:45]}  Nf4 {[%clk 0:01:43]} 22. Rh2 {[%clk 0:01:19]}  Kg8 {[%clk 0:01:34]} 23. Kb1 {[%clk 0:01:18]}  Qc6 {[%clk 0:01:25]} 24. Rdh1 {[%clk 0:01:14]}  Ree7 {[%clk 0:01:21]} 25. e3 {[%clk 0:01:12]}  Nfe6 {[%clk 0:01:20]} 26. d4 {[%clk 0:01:01]}  Ne4 {[%clk 0:01:06]} 27. Nxe4 {[%clk 0:00:45]}  Qxe4 {[%clk 0:01:07]} 28. dxe5 {[%clk 0:00:45]}  Rd7 {[%clk 0:01:06]} 29. Qe2 {[%clk 0:00:43]}  Nc5 {[%clk 0:00:54]} 30. e6 {[%clk 0:00:37]}  Qxe6 {[%clk 0:00:52]} 31. Rh6 {[%clk 0:00:25]}  Rfe7 {[%clk 0:00:38]} 32. Qf1 {[%clk 0:00:17]}  Ne4 {[%clk 0:00:30]} 33. Qa6 {[%clk 0:00:15]}  Rd8 {[%clk 0:00:24]} 34. Qb7 {[%clk 0:00:13]}  Nc5 {[%clk 0:00:18]} 35. Qf3 {[%clk 0:00:13]}  Ne4 {[%clk 0:00:17]} 36. Qg2 {[%clk 0:00:08]}  Rd2 {[%clk 0:00:17]} 37. Qh3 {[%clk 0:00:04]}  Nf2 {[%clk 0:00:16]} 38. Qg2 {[%clk 0:00:04]}  Ne4 {[%clk 0:00:15]} 39. Qf1 {[%clk 0:00:03]}  Rf2 {[%clk 0:00:13]} 40. Qa6 {[%clk 0:00:02]}  Rff7 {[%clk 0:00:11]} 41. Qb5 {[%clk 0:00:02]}  Rd7 {[%clk 0:00:11]} 42. Qe2 {[%clk 0:00:02]}  Rf2 {[%clk 0:00:10]} 43. Qa6 {[%clk 0:00:02]}  Rff7 {[%clk 0:00:09]} 44. Qa8+ {[%clk 0:00:02]}  Rf8 {[%clk 0:00:08]} 45. Qa6 {[%clk 0:00:03]}  Nf2 {[%clk 0:00:05]} 46. Rf1 {[%clk 0:00:02]}  Nxg4 {[%clk 0:00:05]} 47. Rxf8+ {[%clk 0:00:03]}  Kxf8 {[%clk 0:00:05]} 48. Rh1 {[%clk 0:00:03]}  Nxe3 {[%clk 0:00:05]} 49. Re1 {[%clk 0:00:04]}  Rd1+ {[%clk 0:00:04]} 50. Rxd1 {[%clk 0:00:03]}  Nxd1 {[%clk 0:00:05]} 51. Qa8+ {[%clk 0:00:04]}  Ke7 {[%clk 0:00:04]} 52. Qf3 {[%clk 0:00:04]}  Ne3 {[%clk 0:00:04]} 53. Qg3 {[%clk 0:00:04]}  Kd7 {[%clk 0:00:03]} 54. Qf4 {[%clk 0:00:04]}  Nf5 {[%clk 0:00:03]} 55. Be5 {[%clk 0:00:04]}  c5 {[%clk 0:00:03]} 56. Bb8 {[%clk 0:00:04]}  Kc6 {[%clk 0:00:03]} 57. Qc7+ {[%clk 0:00:04]}  Kd5 {[%clk 0:00:03]} 58. Qf4 {[%clk 0:00:04]}  Qe1+ {[%clk 0:00:03]} 59. Ka2 {[%clk 0:00:03]}  Qe2 {[%clk 0:00:03]} 60. Kb1 {[%clk 0:00:03]}  Nd4 {[%clk 0:00:03]} 61. c4+ {[%clk 0:00:03]}  Ke6 {[%clk 0:00:03]} 62. Qd6+ {[%clk 0:00:03]}  Kf5 {[%clk 0:00:03]} 63. Qf4+ {[%clk 0:00:03]}  Ke6 {[%clk 0:00:04]} 64. Qd6+ {[%clk 0:00:03]}  Kf7 {[%clk 0:00:04]} 65. Qf4+ {[%clk 0:00:03]}  Kg7 {[%clk 0:00:04]} 66. Be5+ {[%clk 0:00:02]}  Kg8 {[%clk 0:00:05]} 67. Qf6 {[%clk 0:00:02]}  Qc2+ {[%clk 0:00:05]} 68. Ka1 {[%clk 0:00:02]}  Nxb3# {[%clk 0:00:06]} 0-1


[Site "https://www.chess.com"]

[Event "Titled Tuesday Blitz July 25 Early 2023"]
[White "Bagrationi, Alexander"]
[Black "Lobanov, Sergei"]
[WhiteFideId "14104954"]
[BlackFideId "24183750"]
[WhiteElo "2560"]
[BlackElo "2774"]
[Result "0-1"]
[Round "4"]
[TimeControl "180+2"]
[Date "2023.07.25"]
[WhiteClock "0:00:02"]
[BlackClock "0:00:25"]
[Board "58"]

1. d4 {[%clk 0:02:23]}  Nf6 {[%clk 0:02:58]} 2. Bg5 {[%clk 0:02:22]}  Ne4 {[%clk 0:02:58]} 3. Bf4 {[%clk 0:02:22]}  d5 {[%clk 0:02:58]} 4. f3 {[%clk 0:02:22]}  Nf6 {[%clk 0:02:57]} 5. Nc3 {[%clk 0:02:22]}  c5 {[%clk 0:02:56]} 6. e4 {[%clk 0:02:22]}  dxe4 {[%clk 0:02:53]} 7. dxc5 {[%clk 0:02:22]}  Qa5 {[%clk 0:02:49]} 8. Bb5+ {[%clk 0:02:16]}  Bd7 {[%clk 0:02:38]} 9. a4 {[%clk 0:02:15]}  Nc6 {[%clk 0:02:37]} 10. fxe4 {[%clk 0:02:05]}  e5 {[%clk 0:02:32]} 11. Bxc6 {[%clk 0:01:54]}  Bxc6 {[%clk 0:02:33]} 12. Bxe5 {[%clk 0:01:54]}  Bxc5 {[%clk 0:02:17]} 13. Bxf6 {[%clk 0:01:49]}  gxf6 {[%clk 0:02:18]} 14. Nf3 {[%clk 0:01:45]}  Rg8 {[%clk 0:02:06]} 15. Qe2 {[%clk 0:01:27]}  O-O-O {[%clk 0:02:06]} 16. Rd1 {[%clk 0:00:44]}  Rde8 {[%clk 0:02:06]} 17. Rd2 {[%clk 0:00:37]}  f5 {[%clk 0:01:47]} 18. e5 {[%clk 0:00:34]}  Rg4 {[%clk 0:01:44]} 19. Qd3 {[%clk 0:00:22]}  Re4+ {[%clk 0:01:28]} 20. Kd1 {[%clk 0:00:15]}  Re3 {[%clk 0:01:27]} 21. Qxf5+ {[%clk 0:00:15]}  Kb8 {[%clk 0:01:25]} 22. Qxf7 {[%clk 0:00:15]}  Rf8 {[%clk 0:01:21]} 23. Qxh7 {[%clk 0:00:12]}  Rexf3 {[%clk 0:01:18]} 24. gxf3 {[%clk 0:00:11]}  Bxf3+ {[%clk 0:01:18]} 25. Kc1 {[%clk 0:00:11]}  Bxh1 {[%clk 0:01:19]} 26. Rd1 {[%clk 0:00:07]}  Bc6 {[%clk 0:01:13]} 27. e6 {[%clk 0:00:05]}  Re8 {[%clk 0:01:08]} 28. Re1 {[%clk 0:00:06]}  Bb4 {[%clk 0:01:06]} 29. Qd3 {[%clk 0:00:06]}  Bxc3 {[%clk 0:00:57]} 30. bxc3 {[%clk 0:00:05]}  Qd5 {[%clk 0:00:40]} 31. Qf3 {[%clk 0:00:04]}  Kc8 {[%clk 0:00:41]} 32. Qf6 {[%clk 0:00:03]}  Qd6 {[%clk 0:00:35]} 33. h4 {[%clk 0:00:03]}  Qa3+ {[%clk 0:00:27]} 34. Kd2 {[%clk 0:00:03]}  Rd8+ {[%clk 0:00:26]} 35. Ke2 {[%clk 0:00:03]}  Qd6 {[%clk 0:00:25]} 36. Kf2 {[%clk 0:00:02]}  Rf8 {[%clk 0:00:25]} 0-1


[Site "https://www.chess.com"]

[Event "Titled Tuesday Blitz July 25 Early 2023"]
[White "chessking0310"]
[Black "vishwa_vijeta"]
[WhiteElo "2763"]
[BlackElo "2551"]
[Result "1-0"]
[Round "4"]
[TimeControl "180+2"]
[Date "2023.07.25"]
[WhiteClock "0:00:55"]
[BlackClock "0:00:04"]
[Board "63"]

1. e4 {[%clk 0:03:00]}  c5 {[%clk 0:02:59]} 2. Nf3 {[%clk 0:03:00]}  d6 {[%clk 0:02:59]} 3. d4 {[%clk 0:03:00]}  cxd4 {[%clk 0:03:00]} 4. Nxd4 {[%clk 0:03:00]}  Nf6 {[%clk 0:03:00]} 5. Nc3 {[%clk 0:03:00]}  g6 {[%clk 0:03:00]} 6. Be3 {[%clk 0:03:00]}  Bg7 {[%clk 0:03:00]} 7. f3 {[%clk 0:03:00]}  O-O {[%clk 0:03:00]} 8. Qd2 {[%clk 0:02:57]}  Nc6 {[%clk 0:03:00]} 9. Bc4 {[%clk 0:02:58]}  Bd7 {[%clk 0:02:58]} 10. O-O-O {[%clk 0:02:55]}  Rc8 {[%clk 0:02:57]} 11. Bb3 {[%clk 0:02:55]}  Nxd4 {[%clk 0:02:57]} 12. Bxd4 {[%clk 0:02:55]}  b5 {[%clk 0:02:57]} 13. Nd5 {[%clk 0:02:55]}  Nxd5 {[%clk 0:02:57]} 14. Bxg7 {[%clk 0:02:56]}  Kxg7 {[%clk 0:02:58]} 15. exd5 {[%clk 0:02:57]}  a5 {[%clk 0:02:56]} 16. a3 {[%clk 0:02:57]}  Qb6 {[%clk 0:02:57]} 17. Rhe1 {[%clk 0:02:56]}  Bf5 {[%clk 0:02:11]} 18. g4 {[%clk 0:02:46]}  a4 {[%clk 0:02:08]} 19. gxf5 {[%clk 0:02:45]}  axb3 {[%clk 0:02:08]} 20. c3 {[%clk 0:02:46]}  Rc4 {[%clk 0:02:00]} 21. Kb1 {[%clk 0:02:24]}  Qc7 {[%clk 0:01:48]} 22. Qg5 {[%clk 0:02:14]}  f6 {[%clk 0:01:21]} 23. Qe3 {[%clk 0:02:13]}  Rf7 {[%clk 0:01:18]} 24. fxg6 {[%clk 0:02:13]}  hxg6 {[%clk 0:01:17]} 25. Rg1 {[%clk 0:02:13]}  Qd7 {[%clk 0:01:08]} 26. Qd3 {[%clk 0:02:07]}  g5 {[%clk 0:01:07]} 27. Rg3 {[%clk 0:02:02]}  Rf4 {[%clk 0:01:07]} 28. Re1 {[%clk 0:01:54]}  Qf5 {[%clk 0:01:06]} 29. Re4 {[%clk 0:01:51]}  Rxe4 {[%clk 0:00:58]} 30. Qxe4 {[%clk 0:01:47]}  Qxe4+ {[%clk 0:00:58]} 31. fxe4 {[%clk 0:01:48]}  Rf8 {[%clk 0:00:59]} 32. Kc1 {[%clk 0:01:39]}  Rh8 {[%clk 0:00:59]} 33. Rg2 {[%clk 0:01:40]}  Rh4 {[%clk 0:00:55]} 34. Re2 {[%clk 0:01:40]}  Rf4 {[%clk 0:00:51]} 35. Kd2 {[%clk 0:01:41]}  Rf1 {[%clk 0:00:51]} 36. Kd3 {[%clk 0:01:39]}  Kg6 {[%clk 0:00:48]} 37. c4 {[%clk 0:01:37]}  Rd1+ {[%clk 0:00:44]} 38. Kc3 {[%clk 0:01:27]}  Rc1+ {[%clk 0:00:44]} 39. Kxb3 {[%clk 0:01:26]}  Rxc4 {[%clk 0:00:44]} 40. Ka2 {[%clk 0:01:22]}  g4 {[%clk 0:00:43]} 41. b4 {[%clk 0:01:22]}  Kg5 {[%clk 0:00:43]} 42. Kb3 {[%clk 0:01:22]}  Rd4 {[%clk 0:00:33]} 43. Kc3 {[%clk 0:01:22]}  Rc4+ {[%clk 0:00:33]} 44. Kb3 {[%clk 0:01:22]}  Rd4 {[%clk 0:00:30]} 45. a4 {[%clk 0:01:23]}  bxa4+ {[%clk 0:00:30]} 46. Kxa4 {[%clk 0:01:23]}  Kf4 {[%clk 0:00:31]} 47. Ka5 {[%clk 0:01:00]}  Kf3 {[%clk 0:00:27]} 48. Re1 {[%clk 0:01:00]}  Kf2 {[%clk 0:00:27]} 49. Rb1 {[%clk 0:01:00]}  Rxe4 {[%clk 0:00:22]} 50. b5 {[%clk 0:01:00]}  Re5 {[%clk 0:00:21]} 51. b6 {[%clk 0:00:56]}  Rxd5+ {[%clk 0:00:21]} 52. Rb5 {[%clk 0:00:57]}  Re5 {[%clk 0:00:04]} 53. b7 {[%clk 0:00:55]} 1-0


[Site "https://www.chess.com"]